bitfinex-derivatives/quotes_SOLF0:USTF0_20250202
["timestamp","ask_amount","ask_price","bid_price","bid_amount"]
[1738456282087,0.03077007,216.04,215.99,4.66454561]
[1738456282287,0.03077007,216.04,215.99,0.03424561]
[1738456283290,0.03077007,216.04,216.02,4.6297]
[1738456284484,0.03077007,216.04,215.99,0.03424561]
[1738456285185,4.6301,216.01,215.99,0.03424561]
[1738456286289,4.6298,216.03,215.99,0.03424561]
[1738456288291,4.6299,216.02,215.99,0.03424561]
[1738456288494,0.03077007,216.04,215.87,20.40004622]
[1738456288692,21.82654622,216.05,215.83,20.40004622]
[1738456289396,4.6309,215.97,215.9,4.6324]
[1738456289595,0.03204081,215.96,215.92,0.03306262]
[1738456289996,0.8163153,216.04,215.9,4.6324]
[1738456290297,0.0324428,215.96,215.92,0.03507275]
[1738456290497,4.6315,215.95,215.83,20.40004622]
[1738456290698,0.029817,215.96,215.92,0.03102076]
[1738456290995,4.6317,215.94,215.83,20.40004622]
[1738456291195,4.6317,215.94,215.92,0.03414789]
[1738456291395,4.6317,215.94,215.88,4.6328]
[1738456291597,4.6317,215.94,215.91,0.03552363]
[1738456291901,0.03419202,215.95,215.91,0.03552363]
[1738456292198,0.03419202,215.95,215.92,4.632]
[1738456292594,0.03419202,215.95,215.91,0.03552363]
[1738456294799,0.03419202,215.95,215.92,4.632]
[1738456295000,0.03419202,215.95,215.92,20.40004622]
[1738456296698,9.202e-05,215.95,215.94,4.6316]
[1738456296900,4.645,216.08,215.92,21.92574622]
[1738456297198,4.645,216.08,215.98,20.40004622]
[1738456297399,9.2736,216.08,215.98,20.40004622]
[1738456297598,4.645,216.08,215.98,20.40004622]
[1738456297794,4.645,216.12,215.98,20.40004622]
[1738456298004,4.645,216.12,216.01,0.03486375]
[1738456298207,0.02978444,216.07,216.01,0.03486375]
[1738456298404,0.02978444,216.07,216.05,4.629]
[1738456299904,72.1001985,216.23,216.02,20.40004622]
[1738456300104,51.70015228,216.23,216.1,20.40004622]
[1738456300304,51.70015228,216.23,216.06,20.40004622]
[1738456300505,51.70015228,216.23,216.14,4.6271]
[1738456300804,51.70015228,216.23,216.1,20.40004622]
[1738456301107,0.0320183,216.18,216.14,0.03075735]
[1738456302802,4.6585183,216.18,216.14,0.03075735]
[1738456303009,0.0320183,216.18,216.14,0.03075735]
[1738456308510,4.6584183,216.18,216.14,0.03075735]
[1738456308708,0.0320183,216.18,216.14,0.03075735]
[1738456308912,0.0320183,216.18,216.02,20.40004622]
[1738456309116,4.6274,216.14,216.02,20.40004622]
[1738456309515,3.12,216.22,216.09,4.6283]
[1738456309710,3.12,216.22,216.02,20.40004622]
[1738456310111,0.03458225,216.15,216.1,0.03140848]
[1738456310713,4.66178225,216.15,216.1,0.03140848]
[1738456311406,4.6273,216.14,216.1,0.03140848]
[1738456311716,20.43462847,216.15,215.94,20.40004622]
[1738456311919,20.40004622,216.11,215.94,20.40004622]
[1738456312116,3.12,216.1,215.94,20.40004622]
[1738456312314,20.40004622,216.07,215.9,20.40004622]
[1738456312714,0.03547272,216.01,215.96,0.02961406]
[1738456312913,0.03547272,216.01,215.9,20.40004622]
[1738456313118,0.03547272,216.01,215.96,0.0324074]
[1738456313315,0.03547272,216.01,215.97,4.6308]
[1738456313609,0.03547272,216.01,215.96,0.0324074]
[1738456314012,0.03547272,216.01,215.96,4.6634074]
[1738456314216,0.03547272,216.01,215.96,0.0324074]
[1738456315018,0.03547272,216.01,215.99,4.6304]
[1738456315519,6.0412,216.13,215.98,20.40004622]
[1738456315717,7.5488,216.13,215.98,20.40004622]
[1738456316722,0.03158411,216.08,216.03,0.02963979]
[1738456316925,0.03158411,216.08,216.04,4.6292]
[1738456317720,0.03158411,216.08,216.03,0.02963979]
[1738456318227,4.629,216.06,216.03,0.02963979]
[1738456318524,0.03158411,216.08,216.03,0.02963979]
[1738456318723,4.6292,216.05,216.03,0.02963979]
[1738456318923,0.03158411,216.08,215.96,4.6311]
[1738456319119,20.40004622,216.11,215.84,3.12]
[1738456319925,4.6297,216.03,215.97,4.6309]
[1738456320125,4.6297,216.03,216.0,0.03526862]
[1738456320321,0.03395473,216.04,216.0,0.03526862]
[1738456320628,0.03395473,216.04,215.89,20.40004622]
[1738456320819,3.12,216.05,215.89,20.40004622]
[1738456321023,4.6299,216.02,215.93,4.6316]
[1738456321216,4.6299,216.02,215.89,20.40004622]
[1738456321625,0.03175196,215.98,215.93,0.0343141]
[1738456322628,0.03175196,215.98,215.96,4.631]
[1738456323527,7.5662,216.13,215.97,20.40004622]
[1738456323726,7.5662,216.13,216.01,20.40004622]
[1738456324626,4.6279,216.11,216.01,20.40004622]
[1738456324827,0.02929663,216.09,216.05,0.03273191]
[1738456325422,0.02929663,216.09,215.94,3.004]
[1738456325628,34.33004622,216.11,215.93,20.40004622]
[1738456325829,20.40004622,216.11,215.93,20.40004622]
[1738456326027,7.5662,216.13,215.93,20.40004622]
[1738456326228,7.5662,216.13,215.97,20.40004622]
[1738456326530,7.5662,216.13,215.93,20.40004622]
[1738456326731,0.03162828,216.07,216.03,0.0354481]
[1738456326920,4.6304,216.0,215.93,20.40004622]
[1738456327230,13.93,216.12,215.93,20.40004622]
[1738456327531,0.81599228,216.11,215.94,4.6314]
[1738456327925,13.93,216.12,215.94,4.6314]
[1738456328125,0.03505499,216.05,216.0,0.02928279]
[1738456329128,4.6301,216.01,216.0,0.02928279]
[1738456329328,0.03505499,216.05,215.91,4.632]
[1738456329527,4.6305,216.0,215.89,20.40004622]
[1738456329730,3.12,216.05,215.89,20.40004622]
[1738456330030,3.12,216.05,215.94,4.6315]
[1738456330233,4.6304,216.0,215.94,4.6315]
[1738456330535,0.03200813,216.02,215.97,0.03168739]
[1738456330833,3.12,216.05,215.95,4.6313]
[1738456331035,0.03174246,216.02,215.97,0.03390679]
[1738456331726,4.6305,215.99,215.97,0.03390679]
[1738456331933,0.03174246,216.02,215.97,0.03390679]
[1738456332433,4.6305,215.99,215.97,0.03390679]
[1738456334735,4.6304,216.0,215.97,0.03390679]
[1738456337444,0.03174246,216.02,215.97,0.03390679]
[1738456337737,4.6307,215.98,215.97,0.03390679]
[1738456340944,12.74320967,215.98,215.86,12.74320967]
[1738456341332,26.67320967,216.01,215.82,12.74320967]
[1738456341639,3.12,216.02,215.89,12.74320967]
[1738456341837,3.12,216.02,215.9,4.6322]
[1738456342134,4.6312,215.96,215.93,0.03054108]
[1738456342433,0.0295113,215.98,215.95,4.6313]
[1738456343040,0.0295113,215.98,215.93,4.66214108]
[1738456343437,4.6604113,215.98,215.93,4.66214108]
[1738456343740,0.0295113,215.98,215.93,0.03054108]
[1738456344640,4.6316,215.94,215.93,0.03054108]
[1738456344839,0.0295113,215.98,215.93,0.03054108]
[1738456345942,0.0295113,215.98,215.95,12.74320967]
[1738456346840,0.0295113,215.98,215.96,4.6311]
[1738456348238,0.0295113,215.98,215.93,0.03054108]
[1738456348437,4.631,215.97,215.93,0.03054108]
[1738456348644,0.0295113,215.98,215.93,0.03054108]
[1738456348844,4.6602113,215.98,215.93,4.66214108]
[1738456349044,0.0295113,215.98,215.93,0.03054108]
[1738456351343,4.631,215.97,215.93,4.66224108]
[1738456351548,4.631,215.97,215.93,0.03054108]
[1738456351747,0.0295113,215.98,215.93,0.03054108]
[1738456352046,0.0295113,215.98,215.81,20.3933147]
[1738456352346,20.3933147,215.99,215.81,20.3933147]
[1738456352545,4.6316,215.95,215.85,20.3933147]
[1738456352750,37.2835147,216.03,215.85,20.3933147]
[1738456352943,3.12,216.02,215.85,20.3933147]
[1738456353145,4.6314,215.95,215.92,0.03047033]
[1738456353348,0.03113184,215.96,215.92,0.03047033]
[1738456355853,4.6318,215.93,215.92,0.03047033]
[1738456356056,0.03113184,215.96,215.85,4.6334]
[1738456356353,34.3233147,215.99,215.85,4.6334]
[1738456356548,4.6324,215.91,215.85,4.6334]
[1738456356946,34.3233147,215.99,215.83,4.6337]
[1738456357248,0.03466623,215.9,215.86,0.03108556]
[1738456357449,34.3233147,215.99,215.83,4.6337]
[1738456357643,0.03528208,215.9,215.86,0.03125604]
[1738456357853,4.6328,215.89,215.83,4.6337]
[1738456358148,0.02956496,215.89,215.84,0.02975015]
[1738456358354,4.6335,215.85,215.74,2.9092]
[1738456358548,4.6335,215.85,215.84,0.03125604]
[1738456358746,4.6335,215.85,215.74,2.9092]
[1738456358747,3.12,215.9,215.76,4.6353]
[1738456358946,4.6339,215.83,215.82,0.03125604]
[1738456359751,4.6339,215.83,215.82,5.604e-05]
[1738456360546,4.635,215.79,215.67,23.3569147]
[1738456360747,20.3933147,215.83,215.69,4.6369]
[1738456361151,4.6355,215.76,215.69,4.6369]
[1738456361348,1.4638,215.82,215.67,23.3569147]
[1738456361657,34.3233147,215.68,215.55,127.82956842]
[1738456361852,20.3933147,215.59,215.55,127.82956842]
[1738456362053,4.6397,215.56,215.55,127.82956842]
[1738456362249,4.6397,215.56,215.55,120.73786842]
[1738456362453,4.6397,215.56,215.55,113.59976842]
[1738456362653,4.6397,215.56,215.54,159.78696052]
[1738456362654,4.6397,215.56,215.54,152.24156052]
[1738456362850,20.3933147,215.55,215.54,130.33029242]
[1738456363049,20.42721602,215.59,215.54,130.33029242]
[1738456363354,34.35721602,215.59,215.54,113.42879242]
[1738456363749,20.42721602,215.59,215.54,113.42879242]
[1738456364253,25.0332147,215.55,215.54,55.4116266]
[1738456364452,20.3933147,215.55,215.5,224.00644879]
[1738456364654,20.3933147,215.55,215.39,3.0052]
[1738456365053,20.3933147,215.49,215.39,3.0052]
[1738456365253,20.42576542,215.49,215.39,3.0052]
[1738456366058,77.55022842,215.41,215.4,4.643]
[1738456366553,22.79022842,215.41,215.4,4.643]
[1738456366763,7.32572842,215.41,215.4,4.643]
[1738456367258,91.6691688,215.44,215.42,4.6427]
[1738456367560,69.9103688,215.44,215.42,4.6427]
[1738456368155,125.49467587,215.47,215.46,4.6419]
[1738456368453,37.80887728,215.47,215.46,25.0352147]
[1738456368754,0.03405952,215.49,215.42,20.3933147]
[1738456368960,6.31975463,215.56,215.42,4.84719908]
[1738456369162,0.03441116,215.48,215.44,4.6422]
[1738456369759,0.03441116,215.48,215.44,0.03490921]
[1738456371150,0.03441116,215.48,215.44,4.67710921]
[1738456371350,0.03441116,215.48,215.44,0.03490921]
[1738456371756,1.116e-05,215.48,215.46,25.0351147]
[1738456371958,4.645,215.61,215.46,20.3933147]
[1738456372159,20.3933147,215.67,215.5,20.3933147]
[1738456373163,0.03409431,215.6,215.55,0.0340603]
[1738456373660,3.28,215.7,215.54,20.3933147]
[1738456373960,0.02945037,215.6,215.55,0.03083474]
[1738456374160,0.02945037,215.6,215.5,20.3933147]
[1738456374365,3.28,215.7,215.5,20.3933147]
[1738456374559,0.03089883,215.57,215.55,0.03356623]
[1738456374963,3.28,215.7,215.53,4.6403]
[1738456375161,0.03174542,215.58,215.53,4.6403]
[1738456375461,3.28,215.7,215.54,0.03026548]
[1738456375660,3.28,215.7,215.56,4.6397]
[1738456375956,0.03243407,215.58,215.56,4.6397]
[1738456376162,3.28,215.7,215.61,0.03088277]
[1738456376361,3.28,215.7,215.56,4.6397]
[1738456376662,4.6374,215.67,215.63,0.03479777]
[1738456376959,0.02996405,215.68,215.63,0.03479777]
[1738456377162,4.6383,215.63,215.5,20.3933147]
[1738456377361,20.3933147,215.67,215.5,20.3933147]
[1738456377665,20.3933147,215.67,215.52,4.6405]
[1738456378662,0.03193055,215.62,215.57,0.03271989]
[1738456383568,0.03193055,215.62,215.58,4.6393]
[1738456383768,0.03193055,215.62,215.57,0.03271989]
[1738456384269,0.03193055,215.62,215.61,4.6386]
[1738456384963,0.03193055,215.62,215.59,4.6389]
[1738456385363,0.03193055,215.62,215.57,0.03271989]
[1738456385570,0.03193055,215.62,215.61,4.6386]
[1738456386470,3.055e-05,215.62,215.61,4.6386]
[1738456390065,1.4875,215.77,215.59,20.3933147]
[1738456390264,6.0489,215.75,215.69,4.6369]
[1738456390464,1.4131,215.75,215.63,20.3933147]
[1738456391476,0.03419897,215.71,215.67,0.0308227]
[1738456391677,0.03419897,215.71,215.68,20.3933147]
[1738456392176,3.26,215.85,215.68,20.3933147]
[1738456393075,4.6341,215.83,215.68,20.3933147]
[1738456393376,0.033546,215.78,215.73,0.03559234]
[1738456393974,20.3933147,215.99,215.76,20.3933147]
[1738456394177,1.5243,215.98,215.81,20.3933147]
[1738456394577,4.632,215.92,215.81,20.3933147]
[1738456395174,0.03452294,215.89,215.84,0.03286729]
[1738456397779,4.6333,215.86,215.84,0.03286729]
[1738456398477,0.03452294,215.89,215.72,20.3933147]
[1738456398781,0.03452294,215.89,215.65,3.24]
[1738456398782,2.8488,215.85,215.68,20.3933147]
[1738456399080,2.8488,215.85,215.72,4.6362]
[1738456399273,2.8488,215.85,215.68,20.3933147]
[1738456399678,0.02954896,215.79,215.74,0.03546257]
[1738456400885,4.6355,215.76,215.74,0.03546257]
[1738456401074,0.02954896,215.79,215.64,20.3933147]
[1738456401277,20.3933147,215.83,215.64,20.3933147]
[1738456401481,4.6359,215.74,215.64,20.3933147]
[1738456401681,20.3933147,215.83,215.68,20.3933147]
[1738456401980,2.8488,215.85,215.68,20.3933147]
[1738456402180,4.6351,215.78,215.69,4.6367]
[1738456402380,0.0339391,215.79,215.74,0.03321652]
[1738456402582,3.26,215.79,215.64,20.3933147]
[1738456402878,4.6358,215.75,215.68,4.6369]
[1738456403083,3.26,215.79,215.64,20.3933147]
[1738456403578,4.6353,215.77,215.7,4.6366]
[1738456403883,0.03422034,215.74,215.7,4.6366]
[1738456405084,0.03422034,215.74,215.71,4.6365]
[1738456405379,0.03422034,215.74,215.69,0.03255462]
[1738456407588,0.03422034,215.74,215.69,4.66935462]
[1738456408385,0.03422034,215.74,215.69,0.03255462]
[1738456409983,0.03422034,215.74,215.69,20.42586932]
[1738456410193,1.4523,215.82,215.73,20.3933147]
[1738456410380,3.24,215.9,215.73,20.3933147]
[1738456411084,4.6337,215.84,215.78,4.6349]
[1738456411283,4.6337,215.84,215.73,20.3933147]
[1738456411482,0.03459272,215.83,215.79,0.03475928]
[1738456413890,0.03459272,215.83,215.69,20.41462663]
[1738456414089,4.6341,215.83,215.69,20.41462663]
[1738456414291,20.41462663,215.88,215.69,25.05132663]
[1738456414592,20.41462663,215.88,215.69,20.41462663]
[1738456414791,4.6353,215.77,215.69,20.41462663]
[1738456414994,4.6353,215.77,215.76,0.03214794]
[1738456415294,4.6353,215.77,215.69,20.41462663]
[1738456415495,4.6353,215.77,215.74,0.02998369]
[1738456415797,4.6356,215.75,215.74,0.02998369]
[1738456415986,3.0389,215.78,215.66,4.6374]
[1738456416192,3.0389,215.78,215.6,20.41462663]
[1738456417187,0.03313482,215.71,215.6,20.41462663]
[1738456417392,0.03313482,215.71,215.66,4.6376]
[1738456417892,0.03313482,215.71,215.67,4.6373]
[1738456418389,0.03313482,215.71,215.68,4.6371]
[1738456418595,0.03313482,215.71,215.68,20.41462663]
[1738456419094,1.4814,215.78,215.68,20.41462663]
[1738456419793,1.4814,215.78,215.72,4.6363]
[1738456419990,1.4814,215.78,215.68,20.41462663]
[1738456420191,0.03208326,215.77,215.73,0.03109781]
[1738456420387,0.03208326,215.77,215.73,4.66709781]
[1738456421284,0.03208326,215.77,215.73,0.03109781]
[1738456422997,4.66728326,215.77,215.73,0.03109781]
[1738456423294,0.03208326,215.77,215.73,0.03109781]
[1738456424796,4.6356,215.75,215.73,0.03109781]
[1738456425097,0.03208326,215.77,215.73,0.03109781]
[1738456426097,4.66748326,215.77,215.73,0.03109781]
[1738456426287,0.03208326,215.77,215.73,0.03109781]
[1738456428090,4.6355,215.76,215.73,0.03109781]
[1738456429899,4.6359,215.74,215.73,0.03109781]
[1738456430398,4.6355,215.76,215.73,0.03109781]
[1738456430600,0.03208326,215.77,215.73,0.03109781]
[1738456430798,0.03208326,215.77,215.64,20.41462663]
[1738456430998,20.41462663,215.8,215.64,20.41462663]
[1738456431793,4.6361,215.73,215.64,20.41462663]
[1738456431995,20.41462663,215.8,215.64,20.41462663]
[1738456431996,0.03010934,215.74,215.64,20.41462663]
[1738456432401,0.03010934,215.74,215.7,4.6367]
[1738456432800,0.03010934,215.74,215.64,20.41462663]
[1738456433000,0.03010934,215.74,215.71,4.6365]
[1738456433700,0.03010934,215.74,215.6,20.41462663]
[1738456433701,0.03010934,215.74,215.7,4.6367]
[1738456433903,4.6355,215.76,215.7,4.6367]
[1738456434103,0.0311651,215.74,215.7,4.6367]
[1738456435503,0.0311651,215.74,215.71,4.6364]
[1738456437906,0.0311651,215.74,215.66,12.76625966]
[1738456438106,4.6361,215.74,215.66,12.76625966]
[1738456438299,0.03046098,215.72,215.66,12.76625966]
[1738456440004,0.03046098,215.72,215.68,4.637]
[1738456440608,1.4678,215.81,215.69,12.76625966]
[1738456440803,1.4678,215.81,215.73,12.76625966]
[1738456441609,4.6341,215.83,215.77,4.6352]
[1738456441911,0.03476292,215.79,215.77,4.6352]
[1738456442610,0.03476292,215.79,215.76,17.40165966]
[1738456442909,0.03476292,215.79,215.76,12.76625966]
[1738456443815,0.03476292,215.79,215.78,4.635]
[1738456445414,0.03476292,215.79,215.75,0.03185197]
[1738456447213,4.645,215.9,215.76,12.76625966]
[1738456447413,1.5443,215.94,215.84,12.76625966]
[1738456447808,4.6326,215.9,215.84,12.76625966]
[1738456448205,1.5443,215.94,215.84,12.76625966]
[1738456448407,0.02951835,215.89,215.85,0.03265756]
[1738456450515,4.66221835,215.89,215.85,0.03265756]
[1738456450715,0.02951835,215.89,215.85,0.03265756]
[1738456450916,0.02951835,215.89,215.87,4.6331]
[1738456452218,0.02951835,215.89,215.88,4.6328]
[1738456452718,0.02951835,215.89,215.85,0.03265756]
[1738456452919,0.02951835,215.89,215.86,4.6331]
[1738456453216,0.02951835,215.89,215.85,0.03265756]
[1738456453718,0.02951835,215.89,215.85,4.66595756]
[1738456453919,0.02951835,215.89,215.85,0.03265756]
[1738456455221,4.6333,215.86,215.85,0.03265756]
[1738456456019,12.79577801,215.89,215.74,12.76625966]
[1738456456213,12.76625966,215.89,215.74,12.76625966]
[1738456456718,4.634,215.83,215.76,4.6353]
[1738456457122,0.03280897,215.82,215.77,0.03144412]
[1738456457522,3.05140897,215.82,215.77,0.03144412]
[1738456458115,4.6349,215.79,215.77,0.03144412]
[1738456458620,3.05140897,215.82,215.68,17.40325966]
[1738456458819,3.05140897,215.82,215.68,12.76625966]
[1738456459022,3.0186,215.82,215.68,12.76625966]
[1738456459223,4.635,215.79,215.69,4.6369]
[1738456459423,4.635,215.79,215.68,12.76625966]
[1738456459920,0.03014163,215.76,215.68,12.76625966]
[1738456460120,0.03014163,215.76,215.71,4.6365]
[1738456462524,4.66554163,215.76,215.69,4.6368]
[1738456463623,0.03014163,215.76,215.65,12.76625966]
[1738456463827,3.16,215.78,215.65,12.76625966]
[1738456464025,0.03331766,215.73,215.65,12.76625966]
[1738456464223,0.03331766,215.73,215.68,12.76625966]
[1738456465925,0.03331766,215.73,215.7,4.6367]
[1738456466625,0.03331766,215.73,215.69,4.6369]
[1738456467122,0.03331766,215.73,215.65,12.76625966]
[1738456467324,0.03331766,215.73,215.62,12.76625966]
[1738456467526,0.03331766,215.73,215.61,124.59548238]
[1738456467726,4.637,215.69,215.63,4.6382]
[1738456468226,0.03424704,215.68,215.63,4.6382]
[1738456469928,0.03424704,215.68,215.63,4.6379]
[1738456472026,0.03424704,215.68,215.65,12.76625966]
[1738456472327,12.76625966,215.96,215.67,12.76625966]
[1738456472528,2.9655,215.92,215.79,12.76625966]
[1738456472729,2.9655,215.92,215.76,12.76625966]
[1738456472925,12.76625966,215.87,215.72,12.76625966]
[1738456473132,4.6333,215.85,215.72,12.76625966]
[1738456473324,0.03029039,215.82,215.77,0.03485773]
[1738456474124,0.03029039,215.82,215.81,12.76625966]
[1738456474630,2.9655,215.92,215.83,4.6334]
[1738456475926,0.03012222,215.9,215.85,0.03297603]
[1738456476328,0.03012222,215.9,215.87,12.76625966]
[1738456477328,1.4196,216.01,215.87,12.76625966]
[1738456477630,2.9097,216.03,215.97,12.76625966]
[1738456477826,3.22,216.08,215.94,20.37170004]
[1738456478227,3.22,216.08,215.99,4.63]
[1738456478627,0.03178774,216.03,215.99,4.66361256]
[1738456480032,0.03178774,216.03,216.01,4.6296]
[1738456484637,20.37170004,216.17,215.99,0.03361256]
[1738456484832,2.9591,216.22,216.07,20.37170004]
[1738456485335,2.9591,216.22,216.14,4.6268]
[1738456485538,2.9591,216.22,216.07,20.37170004]
[1738456486039,0.03041015,216.17,216.12,0.03226057]
[1738456488931,4.6265,216.16,216.12,0.03226057]
[1738456489236,0.03041015,216.17,216.12,0.03226057]
[1738456489632,4.6267,216.15,216.12,0.03226057]
[1738456490239,4.6269,216.14,216.12,0.03226057]
[1738456490541,0.03041015,216.17,216.12,0.03226057]
[1738456491441,4.6267,216.15,216.12,0.03226057]
[1738456492642,4.6264,216.16,216.12,0.03226057]
[1738456493140,0.03041015,216.17,216.12,0.03226057]
[1738456493644,0.03041015,216.17,216.16,4.6264]
[1738456495243,0.03041015,216.17,216.12,0.03226057]
[1738456495745,0.03041015,216.17,216.16,4.6264]
[1738456497348,20.37170004,216.33,216.15,20.37170004]
[1738456497542,2.905,216.28,216.2,4.6255]
[1738456498542,0.03352073,216.26,216.2,4.6255]
[1738456498742,0.03352073,216.26,216.22,0.0309213]
[1738456500645,0.03352073,216.26,216.1,20.37170004]
[1738456500841,4.6263,216.17,216.1,4.6277]
[1738456501047,20.37170004,216.25,216.06,20.37170004]
[1738456501348,1.5186,216.24,216.06,20.37170004]
[1738456501551,4.626,216.19,216.06,20.37170004]
[1738456501745,1.5186,216.24,216.06,20.37170004]
[1738456501952,0.02968964,216.17,216.14,4.6268]
[1738456502649,0.02968964,216.17,216.13,0.0315001]
[1738456503154,4.6269,216.14,216.13,0.0315001]
[1738456503747,1.5058,216.16,216.04,20.37170004]
[1738456503950,0.02968964,216.17,216.04,20.37170004]
[1738456504153,1.5058,216.23,216.04,20.37170004]
[1738456504453,20.37170004,216.21,216.04,20.37170004]
[1738456505054,0.03351175,216.15,216.1,0.03304027]
[1738456505450,0.03351175,216.15,216.04,20.37170004]
[1738456505748,0.03351175,216.15,216.1,0.03074952]
[1738456506355,4.6269,216.14,216.1,0.03074952]
[1738456506554,0.03351175,216.15,216.1,0.03074952]
[1738456508655,4.66021175,216.15,216.1,0.03074952]
[1738456508948,0.03351175,216.15,216.1,0.03074952]
[1738456509757,4.6269,216.14,216.1,0.03074952]
[1738456510056,0.03351175,216.15,216.1,0.03074952]
[1738456510256,0.03351175,216.15,216.1,4.65844952]
[1738456511361,0.03351175,216.15,216.1,0.03074952]
[1738456513258,4.66041175,216.15,216.1,0.03074952]
[1738456513451,0.03351175,216.15,216.12,12.71862416]
[1738456513655,1.5458,216.22,216.12,12.71862416]
[1738456513857,4.6255,216.21,216.16,12.71862416]
[1738456514159,1.5458,216.22,216.16,12.71862416]
[1738456514459,1.5458,216.22,216.13,12.71862416]
[1738456514860,0.03190071,216.2,216.15,0.0303919]
[1738456515055,4.6263,216.17,216.15,0.0303919]
[1738456515250,0.03190071,216.2,216.15,0.0303919]
[1738456515562,0.03190071,216.2,216.07,12.71862416]
[1738456515957,4.7258,216.22,216.13,12.71862416]
[1738456516462,4.6262,216.18,216.13,17.34572416]
[1738456516657,0.03403448,216.2,216.15,0.03126575]
[1738456517758,4.6263,216.17,216.15,0.03126575]
[1738456518253,0.03403448,216.2,216.15,0.03126575]
[1738456518560,0.03403448,216.2,216.16,4.6264]
[1738456519161,4.65963448,216.2,216.15,4.65796575]
[1738456519363,0.03403448,216.2,216.15,0.03126575]
[1738456519760,4.6261,216.18,216.15,0.03126575]
[1738456520058,0.03403448,216.2,216.15,0.03126575]
[1738456520662,4.6264,216.16,216.15,0.03126575]
[1738456520861,0.03403448,216.2,216.1,12.71862416]
[1738456521065,0.03403448,216.2,216.16,12.71862416]
[1738456521265,15.89862416,216.3,216.16,12.71862416]
[1738456521464,12.71862416,216.27,216.1,12.71862416]
[1738456521857,4.6255,216.21,216.16,4.6264]
[1738456522061,0.03144348,216.21,216.16,0.03110225]
[1738456522462,0.03144348,216.21,216.18,12.71862416]
[1738456523861,0.03144348,216.21,216.16,0.03110225]
[1738456524370,0.03144348,216.21,216.17,4.6262]
[1738456525165,4.6236,216.3,216.21,4.6253]
[1738456525370,4.6236,216.3,216.23,12.71862416]
[1738456525773,4.6237,216.29,216.23,12.71862416]
[1738456526271,3.0043,216.31,216.24,0.03072243]
[1738456526472,0.03023808,216.28,216.24,0.03072243]
[1738456528073,0.03023808,216.28,216.26,12.71862416]
[1738456529476,0.03023808,216.28,216.26,17.34282416]
[1738456530074,13.19126887,216.46,216.26,25.43724832]
[1738456530274,4.4211,216.45,216.32,12.71862416]
[1738456530470,4.6211,216.42,216.32,12.71862416]
[1738456530675,4.4211,216.45,216.32,12.71862416]
[1738456531372,0.03508381,216.41,216.36,0.03537624]
[1738456532875,0.03508381,216.41,216.38,12.71862416]
[1738456533179,0.17437,216.49,216.38,12.71862416]
[1738456533379,0.17437,216.49,216.41,12.71862416]
[1738456534371,0.03537707,216.47,216.43,0.03398536]
[1738456534775,0.17437,216.49,216.43,0.03398536]
[1738456534975,14.13582416,216.64,216.46,12.71862416]
[1738456535283,10.26917156,216.65,216.57,12.71862416]
[1738456535480,169.91360841,216.71,216.57,12.71862416]
[1738456535680,3.0453,216.72,216.45,105.44]
[1738456535681,20.26616294,216.7,216.51,20.26616294]
[1738456535979,0.03560253,216.63,216.58,0.03531457]
[1738456536180,4.6167,216.62,216.58,0.03531457]
[1738456536375,0.03560253,216.63,216.58,0.03531457]
[1738456536778,4.6169,216.61,216.58,0.03531457]
[1738456537482,0.03560253,216.63,216.58,0.03531457]
[1738456537678,4.6171,216.6,216.58,0.03531457]
[1738456538280,1.445,216.62,216.45,91.54]
[1738456538480,21.71116294,216.62,216.45,91.54]
[1738456538677,20.26616294,216.58,216.45,91.54]
[1738456538982,20.26616294,216.58,216.39,20.26616294]
[1738456539481,4.619,216.51,216.48,0.03511149]
[1738456539679,0.03398438,216.52,216.48,0.03511149]
[1738456540178,4.6193,216.5,216.48,0.03511149]
[1738456540481,0.03398438,216.52,216.39,20.26616294]
[1738456540680,4.6203,216.45,216.36,4.6221]
[1738456540882,1.4942,216.53,216.35,20.26616294]
[1738456541283,4.6197,216.48,216.35,24.88846294]
[1738456541478,0.03544207,216.44,216.39,0.03380588]
[1738456541881,0.03544207,216.44,216.39,0.03175074]
[1738456542579,4.6212,216.41,216.39,0.03175074]
[1738456543087,4.6213,216.41,216.31,20.26616294]
[1738456543283,15.3538,216.49,216.31,20.26616294]
[1738456544179,0.03148088,216.42,216.38,0.03521573]
[1738456546984,4.6212,216.41,216.38,0.03521573]
[1738456547188,0.03148088,216.42,216.38,0.03521573]
[1738456547990,4.6226,216.35,216.26,24.89026294]
[1738456548190,20.26616294,216.45,216.26,20.26616294]
[1738456548488,4.6215,216.4,216.27,4.624]
[1738456548689,34.15616294,216.45,216.26,20.26616294]